bitfinex/quotes_ETHUSD_20241119
["timestamp","ask_amount","ask_price","bid_price","bid_amount"]
[1732007516459,3.19694,3128.0,3127.6,3.807]
[1732007516610,3.19709,3127.9,3127.4,3.821]
[1732007516809,3.19709,3127.9,3127.4,4.842614]
[1732007518736,3.19709,3127.9,3127.4,8.040144]
[1732007519053,3.19714,3127.8,3127.4,3.0]
[1732007520359,3.19694,3128.0,3127.4,3.0]
[1732007520563,3.19694,3128.0,3127.4,6.19748]
[1732007520731,3.19694,3128.0,3127.4,9.45888841]
[1732007520930,3.19694,3128.0,3127.6,3.0]
[1732007521460,3.19694,3128.0,3127.6,3.06381729]
[1732007521759,3.19694,3128.0,3127.6,3.0]
[1732007522251,3.19699,3128.0,3127.6,3.0]
[1732007522950,3.19699,3128.0,3127.4,3.06393842]
[1732007523164,3.19704,3127.9,3127.4,6.26142842]
[1732007524160,3.19699,3128.0,3127.4,3.06393842]
[1732007524452,3.19699,3128.0,3127.5,3.19738]
[1732007524662,3.19699,3128.0,3127.6,3.06393433]
[1732007525016,3.3402165,3128.5,3127.8,3.19708]
[1732007525017,3.19669,3128.3,3127.8,3.19708]
[1732007525435,3.19671,3128.3,3127.7,4.50548]
[1732007526145,3.19676,3128.2,3127.7,4.50548]
[1732007526460,3.19695,3128.0,3127.5,6.96257]
[1732007526759,0.7999,3127.9,3127.5,6.96257]
[1732007530262,3.19695,3128.0,3127.6,3.19732]
[1732007531199,0.7541,3128.1,3127.6,4.213326]
[1732007531563,3.95101,3128.1,3127.6,4.213326]
[1732007531792,3.95101,3128.1,3127.6,3.19732]
[1732007533470,3.19694,3128.0,3127.6,3.19732]
[1732007533902,0.7541,3128.1,3127.6,3.19732]
[1732007534797,3.95097,3128.1,3127.6,3.19732]
[1732007535498,3.95094,3128.1,3127.6,3.19732]
[1732007535885,3.95094,3128.1,3127.7,3.19723]
[1732007536902,3.95094,3128.1,3127.6,3.22332552]
[1732007537205,3.95094,3128.1,3127.6,4.24192607]
[1732007537206,7.14785,3128.1,3127.6,4.24192607]
[1732007537407,7.14785,3128.1,3127.6,1.04459607]
[1732007537408,3.19695,3128.0,3127.6,1.04459607]
[1732007538336,3.95092,3128.1,3127.6,4.24191607]
[1732007539280,3.95092,3128.1,3127.6,4.21592055]
[1732007539482,0.7541,3128.1,3127.7,3.19716]
[1732007539683,4.00428,3128.3,3127.8,3.93843806]
[1732007540085,3.19685,3128.1,3127.6,4.21586055]
[1732007541425,3.19685,3128.1,3127.6,6.39453]
[1732007541630,7.201,3128.3,3127.6,3.19726]
[1732007541927,3.19677,3128.2,3127.7,3.19722]
[1732007542223,3.19677,3128.2,3127.6,3.19726]
[1732007542398,3.19685,3128.1,3127.6,3.19726]
[1732007544227,0.8076,3128.3,3127.5,3.7652]
[1732007544448,3.19698,3128.0,3127.5,3.1974]
[1732007544593,0.8242,3127.9,3127.6,3.0]
[1732007548051,3.99396,3128.2,3127.6,7.64626099]
[1732007548534,7.19077,3128.2,3127.6,7.64626099]
[1732007548828,0.7972,3128.2,3127.8,3.19704]
[1732007549036,3.19661,3128.4,3127.8,3.9616471]
[1732007549536,3.19661,3128.4,3127.9,3.19702]
[1732007550225,3.19662,3128.3,3127.8,3.9617071]
[1732007551308,0.9023865,3128.5,3127.8,3.9617071]
[1732007551492,3.19654,3128.4,3127.8,3.9616571]
[1732007551837,4.0988865,3128.5,3127.8,3.9616771]
[1732007552040,0.9023865,3128.5,3127.9,0.39616571]
[1732007552197,0.9023865,3128.5,3127.8,3.9617071]
[1732007552398,3.19652,3128.4,3127.8,3.9616471]
[1732007552704,0.1437865,3128.5,3128.2,3.19671]
[1732007554532,0.1437865,3128.5,3128.4,5.356694]
[1732007555191,0.1437865,3128.5,3128.4,8.356694]
[1732007558938,0.1437865,3128.5,3128.4,9.68142987]
[1732007560113,0.1437865,3128.5,3128.4,9.69142987]
[1732007561845,0.1437865,3128.5,3128.4,8.91385587]
[1732007562948,0.1437865,3128.5,3128.4,7.57912]
[1732007563440,0.1437865,3128.5,3128.4,8.90385587]
[1732007574954,0.1437865,3128.5,3128.4,10.22859174]
[1732007576042,0.1437865,3128.5,3128.4,8.90385587]
[1732007576380,0.1437865,3128.5,3128.4,4.3826]
[1732007576676,0.1437865,3128.5,3128.4,6.74652]
[1732007577537,0.1437865,3128.5,3128.4,7.54422]
[1732007579138,0.1437865,3128.5,3128.4,7.55422]
[1732007583088,0.1437865,3128.5,3128.4,7.54422]
[1732007583575,0.1437865,3128.5,3128.4,6.99422]
[1732007583759,0.1437865,3128.5,3128.4,6.19652]
[1732007585209,0.9414865,3128.5,3128.4,6.19652]
[1732007585413,0.9414865,3128.5,3128.4,3.19652]
[1732007585723,0.9414865,3128.5,3128.0,3.19692]
[1732007586007,0.9414865,3128.5,3128.1,4.52154587]
[1732007586305,4.1379265,3128.5,3128.1,1.32473587]
[1732007586465,0.9414865,3128.5,3128.0,4.52160587]
[1732007586665,4.1379565,3128.5,3128.0,4.52160587]
[1732007586863,4.01973,3128.4,3127.8,4.52183587]
[1732007587108,0.8232,3128.3,3127.8,3.1971]
[1732007587266,0.8232,3128.0,3127.2,0.08803719]
[1732007587469,0.8232,3128.0,3127.5,4.52217587]
[1732007587865,0.8232,3128.0,3127.3,3.19764]
[1732007587866,0.8232,3127.9,3127.3,3.19764]
[1732007588209,0.8232,3127.9,3127.5,4.52213587]
[1732007588512,0.8232,3127.9,3127.6,3.0]
[1732007589506,0.8232,3127.9,3127.5,1.32473587]
[1732007589712,0.8232,3127.9,3127.6,0.55]
[1732007589881,0.8232,3127.9,3127.6,3.55]
[1732007590809,0.8232,3127.9,3127.6,3.0]
[1732007593171,0.8232,3127.9,3127.5,1.32473587]
[1732007593623,4.02024,3127.9,3127.5,1.32473587]
[1732007594274,3.98214,3127.8,3127.5,1.32473587]
[1732007595412,0.785,3127.8,3127.5,1.32473587]
[1732007595621,3.19687,3128.1,3127.7,1.32473587]
[1732007595782,4.00719,3128.0,3127.7,1.32473587]
[1732007595987,0.8102,3128.0,3127.7,1.32473587]
[1732007596224,3.19731,3127.7,3127.4,1.32473587]
[1732007596422,0.8102,3127.6,3127.4,1.32473587]
[1732007596998,0.8102,3127.6,3127.4,4.32473587]
[1732007597387,0.8102,3127.6,3127.4,1.32473587]
[1732007599634,4.00754,3127.6,3127.4,1.32473587]
[1732007600134,4.00754,3127.6,3127.2,1.87473587]
[1732007600316,4.00754,3127.6,3127.2,0.55]
[1732007600634,4.00754,3127.6,3127.4,0.55]
[1732007600940,4.00754,3127.6,3127.2,0.55]
[1732007601089,4.00754,3127.6,3127.1,3.0]
[1732007601289,3.19754,3127.4,3127.2,0.55]
[1732007601521,0.7949,3127.3,3127.2,0.55]
[1732007601924,0.7949,3127.3,3127.1,4.32473587]
[1732007602399,3.99255,3127.3,3127.1,4.32473587]
[1732007603689,0.7949,3127.3,3127.1,4.32473587]
[1732007603985,0.7949,3127.3,3127.1,1.32473587]
[1732007604192,3.19785,3127.1,3127.0,67.55]
[1732007604390,3.19785,3127.1,3127.0,64.0]
[1732007605001,3.97145,3127.1,3127.0,64.0]
[1732007605622,3.97145,3127.1,3127.0,64.55]
[1732007607435,3.97145,3127.1,3127.0,65.87473587]
[1732007607436,0.7736,3127.1,3127.0,65.87473587]
[1732007608587,3.97145,3127.1,3127.0,65.87473587]
[1732007610625,0.7736,3127.1,3127.0,65.87473587]
[1732007610819,3.97145,3127.1,3127.0,65.87473587]
[1732007611257,3.97145,3127.1,3127.0,64.0]
[1732007613668,3.36128529,3127.1,3127.0,64.0]
[1732007618955,6.38128529,3127.1,3127.0,55.3550784]
[1732007619266,6.38128529,3127.1,3127.0,44.67427288]
[1732007619435,6.93128529,3127.1,3127.0,41.94316072]
[1732007619639,6.93128529,3127.1,3127.0,38.74520072]
[1732007619839,6.93128529,3127.1,3127.0,37.14622072]
[1732007620034,7.48716646,3127.1,3127.0,23.09586432]
[1732007620245,7.48716646,3127.1,3127.0,18.74381083]
[1732007620633,7.98724404,3127.1,3127.0,10.74891083]
[1732007621077,7.98724404,3127.1,3127.0,10.40261083]
[1732007621228,7.98724404,3127.1,3127.0,6.99803329]
[1732007621423,8.37560302,3127.1,3127.0,6.78853329]
[1732007621628,8.37560302,3127.1,3127.0,4.98005329]
[1732007621829,8.37560302,3127.1,3127.0,3.29e-06]
[1732007623878,8.464705,3127.1,3127.0,3.29e-06]
[1732007624781,3.21887,3126.1,3124.9,0.7623]
[1732007624959,6.21887,3126.1,3124.9,0.7623]
[1732007625278,6.21887,3126.1,3124.9,3.96234]
[1732007626274,0.01,3126.7,3125.4,0.7623]
[1732007626574,3.19795,3127.0,3125.9,0.7623]
[1732007626575,0.64714366,3126.8,3125.9,0.7623]
[1732007626876,3.19851,3126.5,3125.9,3.96136]
[1732007627079,0.01,3126.8,3126.0,8.19897]
[1732007627376,3.19828,3126.7,3126.1,3.19886]
[1732007627577,3.19818,3126.8,3126.2,3.19876]
[1732007627785,3.19818,3126.8,3126.1,0.55]
[1732007627932,3.19849,3126.5,3126.1,0.55]
[1732007628682,3.19874,3126.3,3126.0,5.0]
[1732007628834,3.19847,3126.5,3126.0,5.0]
[1732007629028,3.19847,3126.5,3126.0,8.19897]
[1732007629378,3.19847,3126.5,3126.0,5.0]
[1732007629578,3.19793,3127.1,3126.4,3.19847]
[1732007629881,3.19797,3127.0,3126.5,3.9982]
[1732007630082,3.19793,3127.1,3126.5,3.9982]
[1732007630374,3.19797,3127.0,3126.5,3.9982]
[1732007630744,3.19797,3127.0,3126.5,0.7998]
[1732007631068,3.19794,3127.1,3126.5,3.99819]
[1732007631374,0.01,3127.3,3126.5,0.7998]
[1732007631375,3.19804,3127.0,3126.5,0.7998]
[1732007631573,3.19805,3126.9,3126.5,0.7998]
[1732007632677,3.19765,3127.3,3126.6,3.1983]
[1732007632839,6.39539,3127.3,3126.6,3.1983]
[1732007633174,3.19775,3127.2,3126.6,3.1983]
[1732007633332,3.19765,3127.3,3126.5,3.99824]
[1732007633531,6.39579,3127.1,3126.5,3.99824]
[1732007633766,3.19796,3127.0,3126.5,3.99824]
[1732007634549,3.19785,3127.1,3126.5,3.99824]
[1732007635431,3.19785,3127.1,3126.5,7.19664]
[1732007635633,3.19785,3127.1,3126.5,3.9982]
[1732007635833,3.19785,3127.1,3126.5,7.19659]
[1732007636079,3.19766,3127.3,3126.5,0.7998]
[1732007636238,3.19749,3127.5,3126.7,3.19817]
[1732007636434,3.19727,3127.7,3127.1,3.19783]
[1732007636661,3.19734,3127.6,3127.1,3.19783]
[1732007636863,3.19727,3127.7,3127.1,3.19783]
[1732007637078,6.39459,3127.7,3127.1,3.19783]
[1732007637276,3.19736,3127.6,3127.1,3.19783]
[1732007637777,3.19736,3127.6,3126.9,6.39593]
[1732007637936,3.19749,3127.5,3126.9,3.19796]
[1732007638136,3.19749,3127.5,3126.8,0.7659]
[1732007638375,3.19749,3127.5,3127.0,3.19794]
[1732007638678,6.39458,3127.7,3127.0,3.19794]
[1732007638880,3.19734,3127.6,3127.0,3.19794]
[1732007639238,3.19727,3127.7,3127.0,3.19794]
[1732007639472,3.19748,3127.5,3127.0,3.19794]
[1732007640390,3.19748,3127.5,3126.8,3.96403]
[1732007640391,3.19757,3127.4,3126.8,3.96403]
[1732007640690,3.19768,3127.3,3126.8,3.96403]
[1732007641266,3.19768,3127.3,3126.8,0.7659]
[1732007641771,6.39499,3127.5,3126.9,3.19804]
[1732007641961,3.19747,3127.5,3126.9,3.19804]
[1732007642250,3.19747,3127.5,3127.0,3.19789]
[1732007642571,3.19747,3127.5,3126.9,0.55]
[1732007642754,3.19747,3127.5,3127.0,3.19794]
[1732007643094,3.19765,3127.3,3126.8,0.7659]
[1732007643447,6.39538,3127.3,3126.8,0.7659]
[1732007643878,3.19765,3127.3,3126.8,0.7659]
[1732007644077,3.19786,3127.1,3126.8,0.7659]
[1732007645055,3.19765,3127.3,3126.8,0.7659]
[1732007645360,3.19749,3127.5,3126.8,3.96396]
[1732007646500,3.19749,3127.5,3126.8,0.7659]
[1732007646501,3.19754,3127.4,3126.8,0.7659]
[1732007646700,3.19754,3127.4,3126.9,3.19804]
[1732007647580,3.19765,3127.3,3126.8,0.7659]
[1732007647783,3.19765,3127.3,3126.8,3.96402]
[1732007648925,3.19755,3127.4,3126.9,3.19802]
[1732007649102,3.19749,3127.5,3126.9,3.19802]
[1732007649420,3.19749,3127.5,3127.0,3.19794]
[1732007649902,3.19749,3127.5,3126.9,3.19802]
[1732007650413,3.19749,3127.5,3127.0,3.19794]
[1732007650778,3.19734,3127.6,3127.1,3.19783]
[1732007651114,3.1969,3128.1,3127.3,0.55]
[1732007651315,3.69665737,3128.2,3127.7,0.8119]
[1732007651541,3.19678,3128.2,3127.7,0.8119]
[1732007651676,3.19678,3128.2,3127.7,4.00912]
[1732007652813,3.19682,3128.1,3127.7,0.8119]
[1732007653474,3.19666,3128.3,3127.7,0.8119]
[1732007653678,3.19674,3128.2,3127.7,4.00911]
[1732007654619,6.39356,3128.2,3127.7,4.00911]
[1732007654815,3.19674,3128.2,3127.7,0.8119]
[1732007655125,3.19683,3128.1,3127.7,0.8119]
[1732007658007,3.1972,3127.8,3127.3,0.7888]
[1732007658183,3.19731,3127.7,3127.3,0.7888]
[1732007660102,3.1972,3127.8,3127.3,3.9864]
[1732007660434,3.19731,3127.7,3127.3,0.7888]
[1732007661444,3.19724,3127.7,3127.3,0.7888]
[1732007661798,3.1972,3127.8,3127.3,0.7888]
[1732007661997,3.19744,3127.5,3127.3,0.7888]
[1732007663005,3.19744,3127.5,3127.1,0.55]
[1732007663412,3.19744,3127.5,3127.1,3.74784]
[1732007664017,3.19744,3127.5,3127.1,0.55]
[1732007664402,3.19737,3127.6,3127.1,3.74782]
[1732007664813,3.19782,3127.2,3126.6,3.19831]
[1732007665017,3.19782,3127.2,3126.6,3.0]
[1732007665257,3.19792,3127.1,3126.6,6.19834]
[1732007665744,3.19782,3127.2,3126.6,9.39664]
[1732007666044,3.19771,3127.3,3126.6,6.1983]
[1732007666245,3.19771,3127.3,3126.8,0.7816]
[1732007666953,3.19775,3127.2,3126.8,0.7816]
[1732007668805,3.19811,3126.9,3126.5,0.7686]
[1732007669215,3.19816,3126.8,3126.5,0.7686]
[1732007670118,3.19816,3126.8,3126.6,0.55]
[1732007670320,3.19802,3127.0,3126.6,0.55]
[1732007670532,3.19806,3126.9,3126.6,0.55]
[1732007670724,3.19802,3127.0,3126.6,0.55]
[1732007670922,3.19779,3127.2,3126.6,0.55]
[1732007671124,3.19785,3127.1,3126.6,0.55]
[1732007671427,3.19805,3126.9,3126.6,0.55]
[1732007671956,3.19817,3126.8,3126.6,0.55]
[1732007673654,3.19804,3127.0,3126.6,0.55]
[1732007673954,3.19813,3126.9,3126.6,0.55]
[1732007674118,6.39626,3126.9,3126.6,0.55]
[1732007674320,3.19816,3126.8,3126.6,0.55]
[1732007676155,3.19838,3126.6,3126.3,0.55]
[1732007676455,3.19816,3126.8,3126.3,0.55]
[1732007676456,3.19852,3126.5,3126.3,0.55]
[1732007679176,3.19826,3126.7,3126.3,0.55]
[1732007679341,0.02,3127.3,3126.3,0.55]
[1732007679342,3.19812,3126.9,3126.3,0.789]
[1732007679683,3.19791,3127.1,3126.4,3.74856]
[1732007679848,3.19796,3127.0,3126.8,0.55]
[1732007680055,3.19801,3127.0,3126.8,0.55]
[1732007680880,3.19773,3127.3,3126.8,0.55]
[1732007680881,3.19785,3127.1,3126.8,0.55]
[1732007681468,3.19774,3127.2,3126.8,0.55]
[1732007681854,3.19755,3127.4,3126.8,0.55]
[1732007682168,3.19755,3127.4,3126.7,3.98255]
[1732007682169,3.19755,3127.4,3127.0,1.3049]
[1732007682355,3.19738,3127.6,3127.0,4.50282]
[1732007682542,3.19738,3127.6,3127.1,3.19782]
[1732007682878,6.19686,3128.1,3127.2,0.55]
[1732007683063,3.19737,3127.6,3127.2,0.55]
[1732007683383,3.19737,3127.6,3127.1,0.55]
[1732007683939,3.19737,3127.6,3127.1,3.74782]
[1732007684141,3.19727,3127.7,3127.2,3.19774]
[1732007684447,3.19727,3127.7,3127.3,0.55]
[1732007684650,3.19701,3128.0,3127.5,0.55]
[1732007684879,6.39355,3128.2,3127.6,3.19728]
[1732007685099,3.19676,3128.2,3127.7,1.3345]
[1732007685484,3.19684,3128.1,3127.7,1.3345]
[1732007691316,3.19696,3128.0,3127.7,1.3345]
[1732007692526,3.19713,3127.8,3127.7,1.3345]
[1732007692668,3.19733,3127.7,3127.4,0.7727]
[1732007693263,3.19713,3127.8,3127.4,0.7727]
[1732007693510,3.19699,3128.0,3127.4,0.7727]
[1732007693781,3.19708,3127.9,3127.4,3.97024]
[1732007694397,3.19699,3128.0,3127.5,0.55]
[1732007694569,3.19715,3127.8,3127.5,0.55]
[1732007696123,0.1537865,3128.5,3127.2,0.55]
[1732007696335,3.19744,3127.5,3127.2,0.55]
[1732007696608,3.1977,3127.3,3127.1,0.7897]
[1732007696918,3.19735,3127.6,3127.1,0.7897]
[1732007697219,3.19774,3127.2,3126.7,0.7586]
[1732007697627,3.19774,3127.2,3126.7,3.95684]
[1732007697829,3.19792,3127.1,3126.7,0.7586]
[1732007698321,3.19798,3127.0,3126.7,0.7586]
[1732007698679,3.19794,3127.1,3126.5,6.99196]
[1732007699002,3.1978,3127.2,3126.5,0.7935]
[1732007699003,3.19799,3127.0,3126.5,0.7935]
[1732007699197,6.39604,3127.0,3126.6,0.55]
[1732007699498,3.19799,3127.0,3126.6,0.55]
[1732007699889,3.19811,3126.9,3126.6,0.55]
[1732007700291,3.19823,3126.8,3126.6,0.55]
[1732007701036,6.39647,3126.8,3126.6,0.55]
[1732007701238,0.01,3127.4,3126.3,0.7502]
[1732007701387,3.19844,3126.6,3126.2,0.89]
[1732007701888,0.01,3127.4,3126.2,0.89]
[1732007701889,3.19764,3127.3,3126.2,0.89]
[1732007702089,3.19866,3126.3,3126.2,0.89]
[1732007703791,3.19866,3126.3,3126.2,1.44]
[1732007704842,3.19866,3126.3,3126.2,0.89]
[1732007708350,3.19838,3126.6,3126.3,0.55]
[1732007708662,3.19826,3126.7,3126.3,0.55]
[1732007709025,3.19846,3126.5,3126.3,0.55]
[1732007709219,3.19856,3126.4,3126.3,0.55]
[1732007710257,0.01,3127.1,3126.3,0.55]
[1732007710404,3.19826,3126.7,3126.3,0.55]
[1732007711106,3.19826,3126.7,3126.0,2.45281]
[1732007711307,3.19826,3126.7,3126.1,3.1988]
[1732007711730,3.19853,3126.5,3126.0,5.45281]
[1732007711931,3.19853,3126.5,3126.0,2.45281]
[1732007712145,3.19877,3126.2,3126.0,2.45281]
[1732007712350,3.19887,3126.1,3126.0,2.45281]
[1732007714107,3.19877,3126.2,3126.0,2.45281]
[1732007714565,3.19887,3126.1,3126.0,2.45281]
[1732007715255,3.19876,3126.3,3126.0,2.45281]
[1732007715427,3.19879,3126.2,3126.0,2.45281]
[1732007715633,3.19869,3126.3,3126.0,2.45281]
[1732007715813,3.19863,3126.4,3126.0,2.45281]
[1732007716017,3.19855,3126.5,3126.0,5.65178]
[1732007716313,3.19842,3126.6,3126.0,5.65178]
[1732007716314,3.19844,3126.6,3126.1,0.8225]
[1732007716759,3.19843,3126.6,3126.1,0.8225]
[1732007717066,3.19843,3126.6,3126.0,3.19888]
[1732007717260,3.19843,3126.6,3126.1,0.55]
[1732007718009,3.19833,3126.7,3126.1,0.55]
[1732007718348,3.19837,3126.6,3126.1,0.55]
[1732007719434,3.19852,3126.5,3126.1,0.55]
[1732007719632,3.19837,3126.6,3126.1,0.55]
[1732007720139,3.19837,3126.6,3126.2,0.753]
[1732007722218,3.972,3127.0,3126.2,0.753]
[1732007722516,3.19812,3126.9,3126.4,3.19849]
[1732007723212,3.19816,3126.8,3126.2,7.15042]
[1732007723412,6.3964,3126.8,3126.2,3.95169]
[1732007723637,3.19816,3126.8,3126.3,3.19866]
[1732007723866,3.19814,3126.9,3126.3,3.19866]
[1732007724030,3.19814,3126.9,3126.4,3.19854]
[1732007724534,3.19816,3126.8,3126.3,0.55]
[1732007724732,3.19816,3126.8,3126.3,3.7486]
[1732007725236,3.19832,3126.7,3126.3,0.55]
[1732007725636,3.19817,3126.8,3126.3,3.74865]
[1732007726163,3.19828,3126.7,3126.3,0.55]
[1732007727182,3.19842,3126.6,3126.3,0.55]
[1732007727781,3.19811,3126.9,3126.3,0.55]
[1732007727950,3.19831,3126.7,3126.3,0.55]
[1732007728153,3.19842,3126.6,3126.3,0.55]
[1732007729074,3.19831,3126.7,3126.3,0.55]
[1732007729879,3.19866,3126.3,3125.9,0.55]
[1732007730977,0.8315,3126.4,3125.9,3.74902]
[1732007731147,3.19859,3126.4,3125.9,0.55]
[1732007731354,3.19859,3126.4,3125.9,3.74907]
[1732007731587,3.19846,3126.5,3126.0,3.19893]
[1732007731743,3.19841,3126.6,3126.2,0.811]
[1732007732293,6.39683,3126.6,3126.2,0.811]
[1732007732444,3.19821,3126.8,3126.3,3.74858]
[1732007732777,3.198,3127.0,3126.5,3.1984]
[1732007733140,6.39602,3127.0,3126.5,3.1984]
[1732007733380,6.39602,3127.0,3126.4,0.82]
[1732007733381,3.198,3127.0,3126.4,0.82]
[1732007733754,3.19814,3126.9,3126.4,4.01854]
[1732007734489,3.19818,3126.8,3126.4,0.82]
[1732007736717,3.19818,3126.8,3126.4,4.01855]
[1732007737014,3.19801,3127.0,3126.5,3.19841]
[1732007737311,6.39564,3127.2,3126.6,3.19832]
[1732007737515,3.19788,3127.1,3126.6,3.19832]
[1732007737671,0.769,3127.4,3126.4,4.01855]
[1732007737873,3.19801,3127.0,3126.4,4.01855]
[1732007738088,3.19801,3127.0,3126.5,3.19845]
[1732007738513,3.19782,3127.2,3126.7,0.7749]
[1732007738814,3.1976,3127.4,3126.7,0.7749]
[1732007738815,3.19766,3127.3,3126.8,3.19814]
[1732007738980,3.19776,3127.2,3126.7,0.7749]
[1732007739181,3.1979,3127.1,3126.7,0.7749]
[1732007739600,3.19806,3126.9,3126.7,0.7749]
[1732007740114,0.8234,3127.2,3126.3,0.7802]
[1732007740315,3.19804,3127.0,3126.3,3.97885]
[1732007740519,3.19814,3126.9,3126.3,3.97885]
[1732007741013,3.19814,3126.9,3126.4,3.19853]
[1732007741274,4.02118,3127.2,3126.0,3.11520421]
[1732007741437,3.19778,3127.2,3126.8,0.8182]
[1732007742775,3.19786,3127.1,3126.8,0.8182]
[1732007742943,3.19773,3127.3,3126.8,0.8182]
[1732007743273,3.19764,3127.3,3126.8,4.01629]
[1732007743839,4.0084,3127.6,3126.8,4.01635]
[1732007744040,3.19729,3127.7,3126.7,0.7831]
[1732007744240,3.19729,3127.7,3127.3,0.7831]
[1732007744647,4.01988,3127.9,3127.3,0.7831]
[1732007744869,3.19715,3127.8,3127.3,3.98071]
[1732007745074,6.3942,3127.9,3127.3,3.98071]
[1732007745278,3.19708,3127.9,3127.3,3.98071]
[1732007745631,3.19711,3127.9,3127.4,3.19752]
[1732007745835,0.8228,3128.2,3127.3,0.7831]
[1732007746072,0.8228,3128.2,3127.3,3.98073]
[1732007746073,3.19721,3127.8,3127.3,3.98073]
[1732007746379,3.19721,3127.8,3127.3,0.7831]
[1732007746549,3.19725,3127.7,3127.3,0.7831]
[1732007747136,3.19721,3127.8,3127.3,0.7831]
[1732007747550,3.19721,3127.8,3127.3,3.98073]
[1732007747738,3.19721,3127.8,3127.4,3.19753]
[1732007747935,3.19698,3128.0,3127.4,3.19753]
[1732007748140,3.19706,3127.9,3127.4,3.19753]
[1732007748698,3.19698,3128.0,3127.3,3.98068]
[1732007748866,3.19714,3127.8,3127.3,3.98068]
[1732007750076,3.19698,3128.0,3127.3,3.98068]
[1732007750232,3.19698,3128.0,3127.4,3.19754]
[1732007750438,3.19678,3128.2,3127.0,0.8328]
[1732007750736,3.19684,3128.1,3127.7,0.8328]
[1732007751181,6.39375,3128.1,3127.7,0.8328]
[1732007751474,6.39376,3128.1,3127.7,0.8328]
[1732007751677,3.19684,3128.1,3127.7,0.8328]
[1732007752391,6.39417,3127.9,3127.7,0.8328]
[1732007752593,3.94976,3128.4,3127.2,3.1977]
[1732007752594,3.19733,3127.7,3127.2,3.1977]
[1732007752744,3.19733,3127.7,3127.3,0.7658]
[1732007753395,7.1513,3127.9,3127.3,3.96341]
[1732007753704,3.19714,3127.8,3127.3,3.96341]
[1732007753864,3.19714,3127.8,3127.3,0.7658]
[1732007755893,3.95419,3127.9,3127.3,0.7658]
[1732007756237,3.19716,3127.8,3127.3,3.96344]
[1732007756396,3.19724,3127.7,3127.3,0.7658]
[1732007757079,3.19715,3127.8,3127.3,3.96343]
[1732007758399,0.7571,3127.9,3127.4,3.19751]
[1732007758602,3.95419,3127.9,3127.4,3.19751]
[1732007758794,0.7571,3127.9,3127.4,3.19751]
[1732007759096,3.19714,3127.8,3127.3,0.7658]
[1732007759293,0.8171,3127.7,3127.0,4.0089]
[1732007759501,3.19762,3127.4,3127.0,0.811]
[1732007759669,3.19801,3127.0,3126.7,0.811]
[1732007759877,0.8171,3127.2,3126.5,0.811]
[1732007759878,3.19812,3126.9,3126.5,0.811]
[1732007760094,3.19787,3127.1,3126.5,0.811]
[1732007760294,0.8171,3127.2,3126.5,0.811]
[1732007760620,0.8133,3126.7,3125.8,4.02951]
[1732007760932,3.19863,3126.4,3125.9,3.19907]
[1732007761086,3.19871,3126.3,3125.8,0.8304]
[1732007761281,0.8133,3126.7,3125.8,4.02956]
[1732007761588,3.19842,3126.6,3126.0,3.19896]
[1732007761786,3.19842,3126.6,3125.8,4.02951]
[1732007761990,6.39721,3126.4,3125.8,4.02951]
[1732007762281,3.19889,3126.1,3125.8,0.8304]
[1732007762481,3.19889,3126.1,3125.0,0.01]
[1732007762482,0.8126,3126.4,3125.5,0.8331]
[1732007762714,0.8126,3126.4,3125.2,3.19971]
[1732007762715,3.19934,3125.7,3125.2,3.19971]
[1732007762922,3.1991,3125.9,3125.3,3.19964]
[1732007763129,3.19897,3126.1,3125.3,3.19968]
[1732007763296,3.19918,3125.8,3125.1,7.14814421]
[1732007763643,3.19906,3126.0,3125.4,3.19949]
[1732007763843,3.19892,3126.1,3125.3,3.19968]
[1732007764046,3.19915,3125.9,3125.3,3.19968]
[1732007764193,0.8126,3126.4,3125.3,3.19968]
[1732007764381,3.0,3126.3,3125.3,3.19968]
[1732007764586,3.19877,3126.2,3125.5,3.19942]
[1732007765115,4.01121,3126.4,3125.7,3.19928]
[1732007765323,3.19877,3126.2,3125.6,0.7791]
[1732007765935,3.19897,3126.0,3125.6,0.7791]
[1732007766737,3.19908,3125.9,3125.6,0.7791]
[1732007766888,3.19918,3125.8,3125.2,0.7979]
[1732007767089,3.0,3126.2,3125.2,0.7979]
[1732007767282,3.19957,3125.5,3124.9,3.20002]
[1732007767488,3.19957,3125.5,3125.0,3.19999]
[1732007768031,3.19959,3125.4,3124.9,0.7839]
[1732007768530,3.19959,3125.4,3124.9,3.98395]
[1732007768834,0.8319,3125.8,3124.9,0.7839]
[1732007768987,3.19954,3125.5,3124.9,3.98399]
[1732007769885,3.19959,3125.4,3124.9,3.98399]
[1732007770345,3.19959,3125.4,3124.9,0.7839]
[1732007770525,3.1999,3125.1,3124.9,0.7839]
[1732007770703,3.1999,3125.1,3124.6,3.0]
[1732007770704,3.1999,3125.1,3124.6,0.8216]
[1732007770905,3.2001,3124.9,3124.4,3.0]
[1732007771359,3.20024,3124.8,3124.3,4.02223]
[1732007772451,3.20024,3124.8,3124.3,0.8216]
[1732007772946,3.20024,3124.8,3124.3,4.0223]
[1732007773147,0.01,3125.5,3123.9,3.0]
[1732007773148,4.00274,3124.5,3123.9,3.0]
[1732007773351,4.00274,3124.5,3123.9,3.20112]
[1732007773352,3.2007,3124.4,3123.9,3.20112]
[1732007773650,0.8022,3124.5,3123.9,3.20112]